Cogmind - Beta 13 X1 @@@ ROGUE MODE // 2023.08.02 @ 22:59:53 Player: Exp. Geonium Core Result: Self-destructed Performance ------------- Evolutions (0) 0 Regions Visited (3) 600 Robots Destroyed (24) 120 Value Destroyed (644) 644 Prototype IDs (0) 0 Alien Tech Used (0) 0 Bonus (-28) -28 TOTAL SCORE: 1336 Bonus ------- Friendly Fire -28 Cogmind --------- Core Integrity 27/250 Matter 41/300 Energy 200/200 System Corruption 0% Temperature Cool (0) Movement Rolling (110) Location -9/Recycling Parts ------- > --- POWER (1) -------- Subdweller Power Source > --- PROPULSION (2) --- Subdweller Monowheel Subdweller Monowheel > --- UTILITY (2) ------ (None) > --- WEAPON (2) ------- Subdweller Machine Gun Subdweller Machine Gun > --- INVENTORY (5) ---- Hacking Suite Grenade Launcher Datajack Shrapnel Trap Peak State ------------ > --- POWER ------------ Subdweller Power Source > --- PROPULSION ------- Light Treads Light Treads > --- UTILITY ---------- Scrap Shield > --- WEAPON ----------- Subdweller Laser Barrage Gun > --- INVENTORY -------- Hacking Suite Grenade Launcher Datajack Shrapnel Trap Scrap Shield Fragment [Rating: 13] Favorites ----------- Power Ion Engine Engine Ion Engine Propulsion Light Treads Treads Light Treads Leg Aluminum Leg Wheel Subdweller Monowheel Utility Small Storage Unit Device Subdweller Optics Storage Small Storage Unit Protection Scrap Shield Weapon Shotgun Energy Gun Subdweller Laser Ballistic Gun Shotgun Launcher Subdweller Shrapnel Launcher Build | -11 -10 -10 -9 ------- Run | Jun Mat Sub Rec Slots Evolved . | . . . . Power . | . . . . Propulsion . | . . . . Utility . | . . . . Weapon . | . . . . Parts Attached 19 | . 7 12 . Power 2 | . . 2 . Engine 2 | . . 2 . Core . | . . . . Reactor . | . . . . Propulsion 4 | . 2 2 . Treads 2 | . 2 . . Leg . | . . . . Wheel 2 | . . 2 . Hover . | . . . . Flight . | . . . . Utility 4 | . 1 3 . Device 1 | . . 1 . Storage . | . . . . Processor . | . . . . Hackware . | . . . . Protection 3 | . 1 2 . Artifact . | . . . . Weapon 9 | . 4 5 . Energy Gun 1 | . . 1 . Energy Cannon . | . . . . Ballistic Gun 6 | . 3 3 . Ballistic Cannon . | . . . . Launcher 2 | . 1 1 . Special Weapon . | . . . . Impact Weapon . | . . . . Slashing Weapon . | . . . . Piercing Weapon . | . . . . Special Melee Weapon . | . . . . Unidentified Prototypes . | . . . . Parts Lost 4 | . . 4 . Power . | . . . . Propulsion 2 | . . 2 . Utility 1 | . . 1 . Weapon 1 | . . 1 . Highest Loss Streak 4 | . . 4 . To Critical Strikes . | . . . . Average Slot Usage (%) 89 | . 99 83 71 Engine 13 | . 14 13 14 Treads 25 | . 26 24 . Wheel 1 | . . 2 28 Storage 6 | . 14 1 . Protection 12 | . 14 11 . Energy Gun 2 | . . 4 . Ballistic Gun 21 | . 27 16 28 Launcher 3 | . . 6 . Naked Turns . | . . . . Heaviest Build 35 | 13 21 35 13 Greatest Support 40 | 20 40 40 40 Greatest Overweight (x) 4 | . 1 4 . Average Overweight (x) . | . . . . Largest Inventory Capacity 8 | 8 8 8 5 Average Capacity 6 | 8 8 5 5 Most Carried 8 | 6 8 8 4 Average Carried 5 | 6 7 4 4 Final Capacity 8 | 8 8 5 5 Final Carried 8 | 6 8 4 4 Class Distribution -------------------- 65% | Mutant 29% | Subdweller-Mutant 5% | Scavenger-Mutant Dominant Class ---------------- Mutant | -10/Materials Subdweller-Mutant | -10/Subcaves Subdweller-Mutant | -9/Recycling Resources | -11 -10 -10 -9 ----------- Run | Jun Mat Sub Rec Matter Collected 592 | 158 181 253 . Remotely . | . . . . Salvage Created 416 | . 206 210 . Parts 48 | . 22 26 . Haulers Intercepted . | . . . . Recyclers Shooed . | . . . . Parts Field Recycled . | . . . . Retrieved Matter . | . . . . Parts Self-Destructed 9 | . . 9 . Prevented . | . . . . Kills | -11 -10 -10 -9 ------- Run | Jun Mat Sub Rec Combat Hostiles Destroyed 20 | . 7 13 . Guns 10 | . 4 6 . AOE 10 | . 3 7 . Classes Destroyed 6 | . 4 2 . Operator 1 | . 1 . . Turret 1 | . . 1 . Watcher 2 | . 2 . . Swarmer 7 | . 3 4 . Grunt 4 | . 4 . . Subdweller 9 | . . 9 . Best Kill Streak 9 | . 5 9 . Combat Bots Only 8 | . 4 8 . Max Kills in Single Turn 2 | . 2 1 . Gunslinging . | . . . . Exploded 2 | . 2 1 . Melee . | . . . . Uniques/NPCs Destroyed . | . . . . Combat | -11 -10 -10 -9 -------- Run | Jun Mat Sub Rec Damage Taken 1147 | . 217 930 . Core 223 | . 65 158 . Absorbed by Shields . | . . . . Core Remaining (%) 100 | 100 . . . Volleys Fired 63 | . 16 47 . Largest 2 | . 2 2 . Hottest 88 | . 46 88 . Shots Fired 86 | . 30 56 . Gun 71 | . 28 43 . Cannon . | . . . . Launcher 15 | . 2 13 . Special . | . . . . Kinetic 75 | . 28 47 . Thermal 9 | . . 9 . Explosive 2 | . 2 . . Electromagnetic . | . . . . Robot Hit Streak 12 | . 12 7 . Robot Miss Streak 6 | . 6 2 . Penetration Max . | . . . . Secondary Targets 1 | . . 1 . Max Gunslinging Chain 1 | . . 1 . Shots Hit Robots 45 | . 17 28 . Core Hits 39 | . 15 24 . Critical Kills . | . . . . Critical Parts Destroyed . | . . . . Critical Strikes . | . . . . Melee Attacks . | . . . . Impact . | . . . . Slashing . | . . . . Piercing . | . . . . Sneak Attacks . | . . . . Combat Hostiles . | . . . . Follow-up Attacks . | . . . . Damage Inflicted 1949 | . 475 1474 . Guns 759 | . 238 521 . Cannons . | . . . . Explosions 1187 | . 237 950 . Melee . | . . . . Ramming 3 | . . 3 . Kinetic 1607 | . 238 1369 . Thermal 102 | . . 102 . Explosive 237 | . 237 . . Electromagnetic . | . . . . Impact . | . . . . Slashing . | . . . . Piercing . | . . . . Highest Corruption . | . . . . Average Corruption . | . . . . Corruption Purged . | . . . . Corruption Blocked . | . . . . Overload Shots . | . . . . Overflow Damage . | . . . . Projectiles . | . . . . Explosions . | . . . . Melee . | . . . . Knockbacks . | . . . . Impact . | . . . . Kinetic . | . . . . Secondary . | . . . . Self-Inflicted Damage 42 | . . 42 . Shots 2 | . . 2 . Rammed 1 | . . 1 . Targets Rammed 1 | . . 1 . Kicked . | . . . . Crushed . | . . . . Highest Temperature 418 | . 48 418 . Average Temperature 127 | . 28 178 . Received Heat Transfer 1039 | . 66 973 . Effects 1 | . . 1 . Damage (minor) 1 | . . 1 . Siege Activations . | . . . . Robots Corrupted . | . . . . Combat Hostiles . | . . . . Parts Fried . | . . . . Impact Corruptions . | . . . . Robots Melted . | . . . . Combat Hostiles . | . . . . Parts Melted . | . . . . Heat Transferred 125 | . . 125 . Parts Sabotaged . | . . . . Parts Stolen . | . . . . Parts Stripped . | . . . . Power Chain Reactions . | . . . . Missiles Intercepted . | . . . . Alert | -11 -10 -10 -9 ------- Run | Jun Mat Sub Rec Peak Influence 234 | . 234 . 129 Initial 129 | . . . 129 Average 51 | . 53 . 129 Maximum Alert Level 1 | . 1 . . Low Security (%) 95 | 100 94 . 100 Level 1 4 | . 5 . . Level 2 . | . . . . Level 3 . | . . . . Level 4 . | . . . . Level 5 . | . . . . High Security . | . . . . Max Security . | . . . . Squads Dispatched . | . . . . Investigation . | . . . . Extermination . | . . . . Reinforcement . | . . . . Assault . | . . . . Garrison . | . . . . Intercept . | . . . . Searches Triggered . | . . . . Construction Impeded . | . . . . Haulers Reinforced . | . . . . Active Scanning Responses . | . . . . Cargo Convoy Interrupts . | . . . . Stealth | -11 -10 -10 -9 --------- Run | Jun Mat Sub Rec Distress Signals 1 | . 1 . . Communications Jammed . | . . . . Distress Signals . | . . . . Times Spotted 39 | . 13 26 . Peak Tracking Total 6 | . 4 6 . Tactical Retreats 2 | . . 2 . Traps | -11 -10 -10 -9 ------- Run | Jun Mat Sub Rec Traps Triggered . | . . . . Indirectly . | . . . . Trap Hack Attempts . | . . . . Triggered . | . . . . Disarmed . | . . . . Reprogrammed . | . . . . Reused . | . . . . Traps Extracted . | . . . . Installed . | . . . . Triggered . | . . . . Most Traps Carried 1 | . . 1 1 Machines | -11 -10 -10 -9 ---------- Run | Jun Mat Sub Rec Machines Disabled 3 | . . 3 . Max in Single Turn 2 | . . 2 . Machines Repaired . | . . . . Machines Sabotaged . | . . . . Overloaded Fab Kills . | . . . . Hacking | -11 -10 -10 -9 --------- Run | Jun Mat Sub Rec Machines Accessed 4 | . 4 . . Terminals 4 | . 4 . . Fabricators . | . . . . Repair Stations . | . . . . Recycling Units . | . . . . Scanalyzers . | . . . . Garrison Access . | . . . . Total Hacks 10 | . 10 . . Successful 1 | . 1 . . Failed 9 | . 9 . . Catastrophic 4 | . 4 . . Database Lockouts . | . . . . Manual 10 | . 10 . . Terminals 10 | . 10 . . Fabricators . | . . . . Repair Stations . | . . . . Recycling Units . | . . . . Scanalyzers . | . . . . Garrison Access . | . . . . Terminal Hacks 1 | . 1 . . Robot Analysis 1 | . 1 . . Fabricator Hacks . | . . . . Repair Station Hacks . | . . . . Recycling Unit Hacks . | . . . . Scanalyzer . | . . . . Garrison Access Hacks . | . . . . Unauthorized Hacks . | . . . . Terminals . | . . . . Fabricators . | . . . . Repair Stations . | . . . . Recycling Units . | . . . . Scanalyzers . | . . . . Garrison Access . | . . . . Data Cores Recovered 1 | . 1 . . Used . | . . . . Hacking Detections 4 | . 4 . . Full Trace Events . | . . . . Feedback Events . | . . . . Feedback Blocked . | . . . . Robot Schematics Acquired . | . . . . Robots Built . | . . . . Authchips . | . . . . Time . | . . . . Total Robot Build Rating . | . . . . Part Schematics Acquired . | . . . . Parts Built . | . . . . Authchips . | . . . . Time . | . . . . Total Part Build Rating . | . . . . Parts Repaired . | . . . . Time . | . . . . Parts Recycled . | . . . . Recycled Matter . | . . . . Retrieved Matter . | . . . . Retrieved Components . | . . . . Parts Scanalyzed . | . . . . Part Schematics Acquired . | . . . . Parts Damaged . | . . . . Bothacking | -11 -10 -10 -9 ------------ Run | Jun Mat Sub Rec Used RIF Installer . | . . . . Robots Hacked . | . . . . Non-combat . | . . . . Combat . | . . . . Robot Hacks Applied . | . . . . Relay Couplers Released . | . . . . Fabnet Peak Effective % . | . . . . Robots Rewired . | . . . . Allies Hacked . | . . . . Hacks Repelled . | . . . . Allies | -11 -10 -10 -9 -------- Run | Jun Mat Sub Rec Total Allies . | . . . . Largest Group . | . . . . Highest-Rated Group . | . . . . Highest-Rated Ally . | . . . . Total Orders . | . . . . Ally Attacks . | . . . . Total Damage . | . . . . Kills . | . . . . Allies Corrupted . | . . . . Allies Melted . | . . . . Intel | -11 -10 -10 -9 ------- Run | Jun Mat Sub Rec Robot Analysis Total 1 | . 1 . . Derelict Logs Recovered . | . . . . Drone Launches . | . . . . Drone Recoveries . | . . . . Exploration | -11 -10 -10 -9 ------------- Run | Jun Mat Sub Rec Turns Passed 1314 | 30 511 765 8 Spaces Moved 708 | 26 274 401 7 Core 3 | . . 3 . Treads 596 | . 262 334 . Legs 38 | 26 12 . . Wheels 71 | . . 64 7 Hover . | . . . . Flight . | . . . . Fastest Speed 110 | 120 120 110 110 Average Speed 153 | 120 159 152 110 Slowest Speed 250 | 120 190 250 110 Overloaded Moves . | . . . . Propulsion Burnouts . | . . . . Robots Hopped . | . . . . Cave-ins Triggered . | . . . . Exploration Rate (%) 20 | 3 49 23 6 Regions Visited 3 Branch Regions 2 Pre-discovered Areas . | . . . . Known Exits Taken . | . . . . Unknown Exits Taken 3 | 1 1 1 . Scrap Searched . | . . . . Spaces Dug 10 | . . 10 . Terrain Destroyed 140 | . 17 123 . Melee . | . . . . Projectile . | . . . . AOE 140 | . 17 123 . Terrain Rammed . | . . . . Walls Destroyed . | . . . . Machines Disabled . | . . . . Actions | -11 -10 -10 -9 --------- Run | Jun Mat Sub Rec Total 853 | 25 318 503 7 Wait 27 | . 8 19 . Move 705 | 25 273 400 7 Hop . | . . . . Pick Up 11 | . 7 4 . Fast Attach 13 | . 3 10 . Attach 4 | . 2 2 . Detach 1 | . . 1 . Swap 2 | . 2 . . Drop 22 | . 7 15 . Fire 63 | . 16 47 . Melee . | . . . . Ram . | . . . . Kick . | . . . . Crush 1 | . . 1 . Escape Stasis . | . . . . Rewire . | . . . . Trap . | . . . . Miscellaneous 4 | . . 4 . Route ------- -11/Junkyard -10/Materials (discovered 2 exits: [*Mat] / [*Sub]) -10/Subcaves -9/Recycling History --------- Turn | Location | Event 1 | -11/Junkyard | Discovered new exit (range 3) 31 | -11/Junkyard | Entered Materials 328 | -10/Materials | Build established: Mutant 394 | -10/Materials | Discovered new exit (range 15) 524 | -10/Materials | Discovered new exit (range 12) 542 | -10/Materials | Entered Subcaves 703 | -10/Subcaves | Shifting Twisted Machinery released Barrage Gun 711 | -10/Subcaves | Ambushed by swarm of Subdwellers 716 | -10/Subcaves | Shifting Twisted Machinery released Shrapnel Trap 930 | -10/Subcaves | Shifting Twisted Machinery released Barrage Gun 931 | -10/Subcaves | Shifting Twisted Machinery released Mak. System Restoration Module 1082 | -10/Subcaves | Discovered new exit (range 12) 1104 | -10/Subcaves | Ambushed by Subdweller buried in earth 1111 | -10/Subcaves | Build established: Subdweller-Mutant 1141 | -10/Subcaves | Destroyed 8 combat bots 1217 | -10/Subcaves | Core integrity fell below 50% 1225 | -10/Subcaves | Core integrity fell below 20% 1245 | -10/Subcaves | Lost 4 parts (2n1u1w) 1307 | -10/Subcaves | Entered Recycling 1315 | -9/Recycling | Self-destructed Last Messages --------------- 01198_ Critical hit (Meltdown: +260). 01201_ HA-TJ1(R) affixes Scrap Shield Fragment to Scrap Shield. 01202_ Critical hit (Meltdown: +280). 01202_ Slammed into HA-TJ1(R). 01204_ Scrap Shield destroyed. 01210_ Sub. Shrapnel Launcher destroyed. 01210_ Lgt. Treads destroyed. 01214_ Critical hit (Meltdown: +250). 01215_ Overheating: Sub. Machine Gun damaged (-37). 01224_ HA-TJ1(R) destroyed. 01226_ Acquired 15 matter. 01229_ Acquired Sub. Machine Gun. 01233_ Acquired Sub. Monowheel. 01236_ Sub. Power Source shoots sparks and powers down. 01238_ Acquired Sub. Monowheel. 01239_ Dropped Broken Sub. Power Source. 01241_ Acquired Sub. Power Source. A mysterious object appears at your location! LOCATION=UNKNOWN GOAL=ESCAPE Map ----- +----------------------------------------------------+ | ???????????????????????????????? | | ???????????????????????????????? | | ???????????????????????????????? | | ???????????????????????????????? | | ???????????????????????????????? | | ???????????????????????????????? | | ???????????????????????????????? | | ???????????????????????????????? | | ???????????????????????????????? | | ???????????????????????????????? | | ????? ???????????????????????? | | ??? ???????????????????????? | | ??# ???????????????????????? | | ??# ???????????????????????? | | ??# ???????????????????????? | | ??# #??????????????????????? | | ??# #??????????????????????? | | ??# #??????????????????????? | | ??# "??????????????????????? | | ??# Y??????????????????????? | | ??# "??????????????????????? | | ??# #??????????????????????? | | ??# #??????????????????????? | | ??# ##############?????????? | | ??# ????????? | | ??# @ ????????? | | ??# ????????? | | ??# #############???????????? | | ??# #???????????????????????? | | ??# #???????????????????????? | | ??# #???????????????????????? | | ??# #???????????????????????? | | ??# ! #???????????????????????? | | ??# #???????????????????????? | | ??######???????????????????????? | | ???????????????????????????????? | | ???????????????????????????????? | | ???????????????????????????????? | | ???????????????????????????????? | | ???????????????????????????????? | | ???????????????????????????????? | | | | | | | | | | | | | | | | | | | +----------------------------------------------------+ Best States ------------- Heat Dissipation 25 Energy Generation 15 Energy Capacity 250 Matter Stores 300 Matter Capacity 300 Sight Range 16 Terrain Scan Density 10 Armor Coverage 800 Evasion (%) 55 Recoil Reduction 2 Item Schematics ----------------- None Robot Schematics ------------------ None Fabricated ------------ Nothing Alien Tech Used ----------------- None Achievements -------------- None Challenges ------------ None Game ------ Seed PortableSiegeGravjet Manual? 0 Play Time 00:15:17 Cumulative 442.9 hours Start 2023.08.02 @ 22:43:21 End 2023.08.02 @ 22:59:53 Sessions 1 Manual Loads 0 Difficulty Rogue Special Mode None Game No. 488 Rogue 488 Adventurer 0 Explorer 0 Win Type - Total 12 Types 8/0/3/1/0/0/0/0/0 Lore% 78 Gallery% 88 Achievement% 80 Wizard Run 0 Options --------- ASCII 0 Keyboard 0 Movement Numpad Keybinds 0 Fullscreen 1 Font 18/Terminus Map View 76x50 Tactical HUD 1 Map Filters NONE Filters NONE Steam 1 RUN: 9d092bf3-9887-447c-a861-c172e1a2b552